fUST/lending_fUST_20250817
["ID","MTS","AMOUNT","RATE_DAILY","PERIOD"]
[379909458,1755438639251,-500.0,0.00018641,2]
[379909459,1755438639260,-371.43567471,0.00018641,2]
[379909460,1755438639270,-531.55927748,0.00018641,2]
[379909461,1755438639279,-976.05,0.00018641,2]
[379909462,1755438639288,-480.0,0.00018641,2]
[379909463,1755438639298,-734.25,0.00018641,2]
[379909464,1755438639308,-480.0,0.00018641,2]
[379909465,1755438639317,-480.0,0.00018641,2]
[379909466,1755438639326,-7093.57,0.00018641,2]
[379909467,1755438639335,-1689.24,0.00018641,2]
[379909468,1755438639345,-879.83,0.00018641,2]
[379909469,1755438639354,-480.0,0.00018641,2]
[379909470,1755438639363,-480.0,0.00018641,2]
[379909471,1755438639372,-480.0,0.00018641,2]
[379909472,1755438639381,-460.0,0.00018642,2]
[379909473,1755438639391,-460.0,0.00018642,2]
[379909474,1755438639400,-480.0,0.00018642,2]
[379909475,1755438639409,-168.37256866,0.00018642,2]
[379909476,1755438639418,-480.0,0.00018642,2]
[379909477,1755438639428,-236.70394085,0.00018642,2]
[379909478,1755438639438,-480.0,0.00018642,2]
[379909479,1755438639447,-462.0224702,0.00018642,2]
[379909480,1755438639457,-481.83062055,0.00018642,2]
[379909481,1755438639467,-460.0,0.00018642,2]
[379909482,1755438639476,-480.0,0.00018642,2]
[379909483,1755438639486,-480.0,0.00018642,2]
[379909484,1755438639495,-480.0,0.00018642,2]
[379909485,1755438639505,-460.9486442,0.00018642,2]
[379909486,1755438639514,-480.0,0.00018642,2]
[379909487,1755438639523,-480.0,0.00018642,2]
[379909488,1755438639533,-572.24,0.00018642,2]
[379909489,1755438639543,-480.0,0.00018642,2]
[379909490,1755438639552,-850.03,0.00018642,2]
[379909491,1755438639561,-480.0,0.00018642,2]
[379909492,1755438639571,-480.0,0.00018642,2]
[379909493,1755438639580,-584.79689692,0.00018642,2]
[379909495,1755438639590,-868.73,0.00018642,2]
[379909497,1755438639727,-460.46415229,0.00018642,2]
[379909499,1755438639736,-480.0,0.00018642,2]
[379909501,1755438639746,-480.0,0.00018642,2]
[379909503,1755438639755,-483.96655958,0.00018642,2]
[379909505,1755438639764,-480.0,0.00018642,2]
[379909507,1755438639773,-480.0,0.00018642,2]
[379909509,1755438639782,-480.0,0.00018642,2]
[379909511,1755438639792,-480.0,0.00018642,2]
[379909513,1755438639801,-480.0,0.00018642,2]
[379909515,1755438639810,-480.0,0.00018642,2]
[379909517,1755438639820,-480.0,0.00018642,2]
[379909519,1755438639830,-480.0,0.00018642,2]
[379909521,1755438639839,-480.0,0.00018642,2]
[379909523,1755438639849,-480.0,0.00018642,2]
[379909525,1755438639858,-378.28666909,0.00018642,2]
[379909527,1755438639869,-480.0,0.00018642,2]
[379909529,1755438639881,-460.0,0.00018642,2]
[379909531,1755438639894,-480.0,0.00018642,2]
[379909533,1755438639904,-480.0,0.00018642,2]
[379909535,1755438639913,-480.0,0.00018642,2]
[379909537,1755438639924,-609.72,0.00018642,2]
[379909539,1755438639934,-480.0,0.00018642,2]
[379909541,1755438639944,-463.87009949,0.00018642,2]
[379909543,1755438639953,-480.0,0.00018642,2]
[379909544,1755438639964,-1034.05,0.00018642,2]
[379909546,1755438639974,-480.0,0.00018642,2]
[379909548,1755438639984,-480.0,0.00018642,2]
[379909550,1755438639993,-616.43,0.00018642,2]
[379909552,1755438640002,-521.68,0.00018642,2]
[379909554,1755438640012,-480.0,0.00018642,2]
[379909556,1755438640021,-460.0,0.00018642,2]
[379909558,1755438640031,-753.01,0.00018642,2]
[379909560,1755438640041,-480.0,0.00018642,2]
[379909562,1755438640051,-480.0,0.00018642,2]
[379909565,1755438640060,-1359.14,0.00018642,2]
[379909566,1755438640076,-480.0,0.00018642,2]
[379909569,1755438640087,-480.0,0.00018642,2]
[379909571,1755438640103,-480.0,0.00018642,2]
[379909573,1755438640116,-480.0,0.00018642,2]
[379909575,1755438640125,-565.46,0.00018642,2]
[379909577,1755438640135,-687.63,0.00018642,2]
[379909578,1755438640145,-480.0,0.00018642,2]
[379909580,1755438640154,-480.0,0.00018642,2]
[379909582,1755438640164,-221.63102291,0.00018642,2]
[379909584,1755438640173,-480.0,0.00018642,2]
[379909587,1755438640182,-480.0,0.00018642,2]
[379909588,1755438640191,-460.0,0.00018642,2]
[379909590,1755438640200,-460.0,0.00018642,2]
[379909593,1755438640210,-460.0,0.00018642,2]
[379909594,1755438640219,-460.0,0.00018642,2]
[379909596,1755438640228,-500.0,0.00018642,2]
[379909598,1755438640238,-500.0,0.00018642,2]
[379909600,1755438640248,-480.0,0.00018642,2]
[379909603,1755438640258,-480.0,0.00018642,2]
[379909605,1755438640267,-480.0,0.00018642,2]
[379909607,1755438640276,-480.0,0.00018642,2]
[379909609,1755438640286,-460.0,0.00018642,2]
[379909611,1755438640295,-260.0,0.00018642,2]
[379909613,1755438640304,-508.55664136,0.00018643,2]
[379909615,1755438640314,-440.83390138,0.00018643,2]
[379909617,1755438640323,-480.0,0.00018643,2]
[379909619,1755438640333,-480.0,0.00018643,2]
[379909621,1755438640343,-541.4952272,0.00018643,2]
[379909623,1755438640353,-300.0,0.00018643,2]
[379909625,1755438640363,-460.0,0.00018643,2]
[379909627,1755438640373,-460.0,0.00018643,2]
[379909629,1755438640382,-480.0,0.00018643,2]
[379909631,1755438640391,-480.0,0.00018643,2]
[379909633,1755438640400,-480.0,0.00018643,2]
[379909635,1755438640409,-480.0,0.00018643,2]
[379909636,1755438640420,-480.0,0.00018643,2]
[379909638,1755438640429,-1033.65,0.00018643,2]
[379909640,1755438640438,-480.0,0.00018643,2]
[379909642,1755438640448,-872.76,0.00018643,2]
[379909644,1755438640457,-480.0,0.00018643,2]
[379909646,1755438640466,-480.0,0.00018643,2]
[379909648,1755438640475,-480.0,0.00018643,2]
[379909650,1755438640484,-480.0,0.00018643,2]
[379909652,1755438640493,-5101.42,0.00018643,2]
[379909654,1755438640503,-480.0,0.00018643,2]
[379909656,1755438640512,-578.11398787,0.00018643,2]
[379909658,1755438640522,-875.22,0.00018643,2]
[379909660,1755438640531,-480.0,0.00018643,2]
[379909662,1755438640539,-480.0,0.00018643,2]
[379909664,1755438640548,-673.74,0.00018643,2]
[379909666,1755438640557,-406.8685662,0.000187,2]
[379909668,1755438640567,-862.9717566,0.000187,2]
[379909670,1755438640576,-580.6760442,0.000187,2]
[379909672,1755438640585,-293.7943279,0.000187,2]
[379909674,1755438640595,-293.7943279,0.000187,2]
[379909676,1755438640604,-500.0,0.00018705,2]
[379909678,1755438640613,-480.0,0.00018706,2]
[379909680,1755438640622,-6783.17,0.00018706,2]
[379909682,1755438640631,-1434.13259102,0.00018719,2]
[379909684,1755438640640,-480.0,0.00018746,2]
[379909686,1755438640649,-480.0,0.00018746,2]
[379909688,1755438640658,-480.0,0.00018746,2]
[379909690,1755438640668,-480.0,0.00018746,2]
[379909692,1755438640677,-500.0,0.00018748,2]
[379909694,1755438640686,-480.0,0.00018748,2]
[379909696,1755438640695,-1068.23,0.00018748,2]
[379909698,1755438640704,-480.0,0.00018748,2]
[379909700,1755438640713,-480.0,0.00018748,2]
[379909701,1755438640722,-480.0,0.00018748,2]
[379909703,1755438640731,-460.0,0.00018748,2]
[379909705,1755438640741,-480.0,0.00018748,2]
[379909707,1755438640751,-480.0,0.00018748,2]
[379909709,1755438640759,-480.0,0.00018748,2]
[379909711,1755438640769,-468.63144356,0.00018748,2]
[379909713,1755438640778,-480.0,0.00018748,2]
[379909715,1755438640787,-480.0,0.00018748,2]
[379909717,1755438640796,-480.0,0.00018748,2]
[379909719,1755438640806,-464.59410683,0.00018748,2]
[379909721,1755438640815,-1223.2,0.00018748,2]
[379909723,1755438640825,-1578.21,0.00018748,2]
[379909725,1755438640834,-480.0,0.00018748,2]
[379909727,1755438640844,-461.66191109,0.00018748,2]
[379909729,1755438640853,-1173.15,0.00018748,2]
[379909731,1755438640862,-442.95328827,0.00018748,2]
[379909733,1755438640873,-555.34192878,0.00018748,2]
[379909735,1755438640890,-480.0,0.00018748,2]
[379909737,1755438640899,-480.0,0.00018748,2]
[379909739,1755438640909,-464.10314022,0.00018748,2]
[379909741,1755438640918,-480.0,0.00018748,2]
[379909743,1755438640928,-465.41724905,0.00018748,2]
[379909745,1755438640937,-480.0,0.00018748,2]
[379909747,1755438640946,-480.0,0.00018748,2]
[379909749,1755438640956,-3387.28,0.00018748,2]
[379909751,1755438640964,-559.3,0.00018748,2]
[379909753,1755438640974,-463.13980102,0.00018748,2]
[379909755,1755438640984,-480.0,0.00018748,2]
[379909756,1755438640992,-713.3,0.00018748,2]
[379909758,1755438641002,-480.0,0.00018748,2]
[379909760,1755438641011,-1000.0,0.00018794,2]
[379909762,1755438641020,-1000.0,0.00018794,2]
[379909764,1755438641030,-346.19,0.00018794,2]
[379909767,1755438641039,-13635.90404827,0.00018817,2]
[379909768,1755438641048,-246530.74872593,0.00018817,2]
[379909770,1755438641058,-1000.0,0.00018817,2]
[379909772,1755438641067,-500.0,0.00018873,2]
[379909774,1755438641076,-500.0,0.00018873,2]
[379909776,1755438641087,-500.0,0.00018873,2]
[379909778,1755438641097,-500.0,0.00018873,2]
[379909780,1755438641106,-500.0,0.00018873,2]
[379909782,1755438641116,-500.0,0.00018873,2]
[379909784,1755438641125,-500.0,0.00018873,2]
[379909786,1755438641135,-500.0,0.00018873,2]
[379909788,1755438641144,-500.0,0.00018873,2]
[379909790,1755438641153,-500.0,0.00018873,2]
[379909792,1755438641163,-561.50936605,0.00018873,2]
[379909794,1755438641172,-500.0,0.00018873,2]
[379909796,1755438641181,-500.0,0.00018873,2]
[379909798,1755438641191,-500.0,0.00018873,2]
[379909800,1755438641200,-500.0,0.00018873,2]
[379909802,1755438641209,-503.04797693,0.00018873,2]
[379909804,1755438641218,-500.93563452,0.00018873,2]
[379909806,1755438641227,-500.0,0.00018873,2]
[379909808,1755438641236,-500.0,0.00018873,2]
[379909810,1755438641245,-500.0,0.00018873,2]
[379909811,1755438641255,-503.87076081,0.00018873,2]
[379909812,1755438641265,-500.0,0.00018873,2]
[379909813,1755438641274,-500.0,0.00018873,2]
[379909814,1755438641284,-502.43706856,0.00018873,2]
[379909815,1755438641294,-500.0,0.00018873,2]
[379909816,1755438641304,-500.0,0.00018873,2]
[379909817,1755438641314,-500.0,0.00018873,2]
[379909818,1755438641324,-500.0,0.00018873,2]
[379909819,1755438641339,-1434.13259102,0.00018897,2]
[379909820,1755438641354,-151.0,0.000189,2]
[379909821,1755438641366,-1373.47263111,0.000189,2]
[379909822,1755438641377,-302.60665372,0.000189,2]
[379909823,1755438641386,-863.8899101,0.000189,2]
[379909824,1755438641399,-475.96643754,0.00018904,2]
[379909825,1755438641423,-480.0,0.00018912,2]
[379909826,1755438641433,-480.0,0.00018912,2]
[379909827,1755438641443,-480.0,0.00018912,2]
[379909828,1755438641452,-440.54791943,0.00018912,2]
[379909829,1755438641463,-480.0,0.00018912,2]
[379909830,1755438641473,-387.18596913,0.00018912,2]
[379909831,1755438641482,-480.0,0.00018912,2]
[379909832,1755438641491,-618.39,0.00018912,2]
[379909833,1755438641501,-1003.31,0.00018912,2]
[379909834,1755438641510,-509.86,0.00018912,2]
[379909835,1755438641519,-480.0,0.00018912,2]
[379909836,1755438641528,-480.0,0.00018912,2]
[379909837,1755438641537,-480.0,0.00018912,2]
[379909838,1755438641546,-480.0,0.00018912,2]
[379909839,1755438641555,-480.0,0.00018912,2]
[379909840,1755438641564,-480.0,0.00018912,2]
[379909841,1755438641574,-480.0,0.00018912,2]
[379909842,1755438641583,-480.0,0.00018912,2]
[379909843,1755438641592,-480.0,0.00018912,2]
[379909844,1755438641601,-480.0,0.00018912,2]
[379909846,1755438641610,-480.0,0.00018912,2]
[379909848,1755438641620,-466.24910595,0.00018912,2]
[379909850,1755438641629,-480.0,0.00018912,2]
[379909851,1755438641639,-480.0,0.00018912,2]
[379909853,1755438641648,-480.0,0.00018912,2]
[379909855,1755438641657,-480.0,0.00018912,2]
[379909857,1755438641667,-713.38,0.00018912,2]
[379909859,1755438641676,-480.0,0.00018912,2]
[379909861,1755438641685,-480.0,0.00018912,2]
[379909864,1755438641696,-480.0,0.00018912,2]
[379909865,1755438641705,-528.18,0.00018912,2]
[379909867,1755438641714,-480.0,0.00018912,2]
[379909869,1755438641723,-616.70696199,0.00018912,2]
[379909871,1755438641732,-463.1809597,0.00018912,2]
[379909873,1755438641742,-480.0,0.00018912,2]
[379909876,1755438641751,-480.0,0.00018912,2]
[379909877,1755438641761,-480.0,0.00018912,2]
[379909879,1755438641770,-711.93,0.00018912,2]
[379909881,1755438641779,-480.0,0.00018912,2]
[379909883,1755438641788,-480.0,0.00018912,2]
[379909885,1755438641798,-2411.44,0.00018912,2]
[379909887,1755438641807,-480.0,0.00018912,2]
[379909889,1755438641816,-460.0,0.00018912,2]
[379909891,1755438641825,-490.0033101,0.00018912,2]
[379909893,1755438641834,-480.0,0.00018912,2]
[379909895,1755438641843,-480.0,0.00018912,2]
[379909897,1755438641852,-480.0,0.00018912,2]
[379909899,1755438641861,-527.43,0.00018912,2]
[379909901,1755438641871,-480.0,0.00018912,2]
[379909903,1755438641884,-480.0,0.00018912,2]
[379909905,1755438641893,-480.0,0.00018912,2]
[379909907,1755438641903,-480.0,0.00018912,2]
[379909909,1755438641912,-480.0,0.00018912,2]
[379909911,1755438641923,-480.0,0.00018912,2]
[379909913,1755438641932,-480.0,0.00018912,2]
[379909915,1755438641942,-480.0,0.00018912,2]
[379909917,1755438641951,-712.58,0.00018912,2]
[379909919,1755438641962,-480.0,0.00018912,2]
[379909921,1755438641971,-480.0,0.00018912,2]
[379909923,1755438641980,-480.0,0.00018912,2]
[379909925,1755438641989,-976.05,0.00018915,2]
[379909927,1755438641999,-734.25,0.00018915,2]
[379909928,1755438642008,-480.0,0.00018915,2]
[379909930,1755438642017,-480.0,0.00018915,2]
[379909932,1755438642027,-7093.57,0.00018915,2]
[379909934,1755438642036,-1689.24,0.00018915,2]
[379909936,1755438642045,-879.83,0.00018915,2]
[379909938,1755438642055,-480.0,0.00018915,2]
[379909940,1755438642064,-480.0,0.00018915,2]
[379909942,1755438642073,-480.0,0.00018916,2]
[379909944,1755438642083,-485.11643174,0.00018916,2]
[379909946,1755438642092,-480.0,0.00018916,2]
[379909948,1755438642102,-480.0,0.00018916,2]
[379909950,1755438642111,-572.24,0.00018916,2]
[379909952,1755438642121,-850.03,0.00018916,2]
[379909954,1755438642131,-480.0,0.00018916,2]
[379909956,1755438642140,-868.73,0.00018916,2]
[379909958,1755438642149,-480.0,0.00018916,2]
[379909960,1755438642159,-480.0,0.00018916,2]
[379909962,1755438642168,-480.0,0.00018916,2]
[379909964,1755438642177,-466.17568007,0.00018916,2]
[379909966,1755438642186,-480.0,0.00018916,2]
[379909968,1755438642194,-480.0,0.00018916,2]
[379909970,1755438642204,-465.18115333,0.00018916,2]
[379909972,1755438642214,-480.0,0.00018916,2]
[379909974,1755438642223,-480.0,0.00018916,2]
[379909976,1755438642235,-577.17384512,0.00018916,2]
[379909978,1755438642245,-480.0,0.00018916,2]
[379909980,1755438642255,-609.72,0.00018916,2]
[379909982,1755438642264,-480.0,0.00018916,2]
[379909984,1755438642273,-440.0,0.00018916,2]
[379909986,1755438642283,-1034.05,0.00018916,2]
[379909988,1755438642292,-480.0,0.00018916,2]
[379909990,1755438642302,-480.0,0.00018916,2]
[379909992,1755438642312,-616.43,0.00018916,2]
[379909994,1755438642321,-521.68,0.00018916,2]
[379909996,1755438642330,-480.0,0.00018916,2]
[379909998,1755438642339,-753.01,0.00018916,2]
[379910000,1755438642349,-460.0,0.00018916,2]
[379910002,1755438642358,-480.0,0.00018916,2]
[379910020,1755438642520,-1359.14,0.00018916,2]
[379910023,1755438642533,-480.0,0.00018916,2]
[379910025,1755438642543,-480.0,0.00018916,2]
[379910027,1755438642552,-222.766115,0.00018916,2]
[379910029,1755438642562,-441.01465735,0.00018916,2]
[379910031,1755438642572,-565.46,0.00018916,2]
[379910033,1755438642581,-687.63,0.00018916,2]
[379910035,1755438642590,-420.0,0.00018916,2]
[379910037,1755438642599,-480.0,0.00018916,2]
[379910039,1755438642608,-151.0,0.00018916,2]
[379910041,1755438642618,-472.17585176,0.00018916,2]
[379910043,1755438642627,-500.0,0.00018916,2]
[379910045,1755438642636,-500.0,0.00018916,2]
[379910047,1755438642646,-500.0,0.00018916,2]
[379910049,1755438642655,-151.0,0.00018916,2]
[379910051,1755438642665,-151.0,0.00018916,2]
[379910053,1755438642674,-151.0,0.00018916,2]
[379910055,1755438642683,-151.0,0.00018916,2]
[379910057,1755438642693,-151.0,0.00018916,2]
[379910059,1755438642702,-480.0,0.00018916,2]
[379910061,1755438642711,-480.0,0.00018916,2]
[379910063,1755438642721,-151.0,0.00018916,2]
[379910064,1755438642730,-151.0,0.00018916,2]
[379910067,1755438642740,-420.0,0.00018917,2]
[379910069,1755438642749,-480.0,0.00018917,2]
[379910071,1755438642758,-480.0,0.00018917,2]
[379910073,1755438642767,-426.35030821,0.00018917,2]
[379910075,1755438642777,-480.0,0.00018917,2]
[379910076,1755438642786,-460.0,0.00018917,2]
[379910079,1755438642797,-480.0,0.00018917,2]
[379910081,1755438642808,-480.0,0.00018917,2]
[379910083,1755438642816,-460.0,0.00018917,2]
[379910084,1755438642826,-480.0,0.00018917,2]
[379910087,1755438642835,-480.0,0.00018917,2]
[379910088,1755438642844,-480.0,0.00018917,2]
[379910091,1755438642854,-480.0,0.00018917,2]
[379910093,1755438642863,-480.0,0.00018917,2]
[379910095,1755438642873,-480.0,0.00018917,2]
[379910097,1755438642887,-151.0,0.00018917,2]
[379910099,1755438642897,-281.80394759,0.00018917,2]
[379910101,1755438642906,-480.0,0.00018917,2]
[379910103,1755438642915,-480.0,0.00018917,2]
[379910105,1755438642924,-1033.65,0.00018917,2]
[379910107,1755438642934,-235.12199019,0.00018917,2]
[379910109,1755438642943,-872.76,0.00018917,2]
[379910111,1755438642953,-151.0,0.00018917,2]
[379910113,1755438642963,-151.0,0.00018917,2]
[379910115,1755438642974,-151.0,0.00018917,2]
[379910117,1755438642983,-151.0,0.00018917,2]
[379910119,1755438642993,-480.0,0.00018917,2]
[379910121,1755438643003,-480.0,0.00018917,2]
[379910123,1755438643012,-5101.42,0.00018917,2]
[379910125,1755438643022,-612.08,0.00018917,2]
[379910127,1755438643031,-480.0,0.00018917,2]
[379910129,1755438643041,-1688.62,0.00018917,2]
[379910131,1755438643050,-264.40123338,0.00018917,2]
[379910133,1755438643060,-875.22,0.00018917,2]
[379910134,1755438643070,-198.75777352,0.00018917,2]
[379910136,1755438643079,-480.0,0.00018917,2]
[379910138,1755438643089,-673.74,0.00018917,2]
[379910141,1755438643098,-500.0,0.00018977,2]
[379910143,1755438643107,-480.0,0.0001898,2]
[379910145,1755438643117,-6783.17,0.0001898,2]
[379910147,1755438643126,-159.43503154,0.00019,20]
[379910149,1755438643135,-151.0,0.00019,2]
[379910151,1755438643144,-587.07,0.00019,2]
[379910153,1755438643153,-332.52442602,0.0001902,2]
[379910155,1755438643162,-480.0,0.0001902,2]
[379910157,1755438643171,-480.0,0.0001902,2]
[379910158,1755438643180,-480.0,0.0001902,2]
[379910160,1755438643189,-500.0,0.00019022,2]
[379910162,1755438643198,-1068.23,0.00019022,2]
[379910164,1755438643207,-480.0,0.00019022,2]
[379910166,1755438643218,-480.0,0.00019022,2]
[379910168,1755438643228,-480.0,0.00019022,2]
[379910170,1755438643237,-480.0,0.00019022,2]
[379910172,1755438643247,-480.0,0.00019022,2]
[379910174,1755438643256,-480.0,0.00019022,2]
[379910176,1755438643266,-480.0,0.00019022,2]
[379910178,1755438643275,-1223.2,0.00019022,2]
[379910180,1755438643284,-1578.21,0.00019022,2]
[379910183,1755438643294,-480.0,0.00019022,2]
[379910184,1755438643303,-1173.15,0.00019022,2]
[379910186,1755438643313,-480.0,0.00019022,2]
[379910188,1755438643322,-480.0,0.00019022,2]
[379910190,1755438643332,-212.8104296,0.00019022,2]
[379910192,1755438643341,-480.0,0.00019022,2]
[379910194,1755438643351,-480.0,0.00019022,2]
[379910197,1755438643360,-3387.28,0.00019022,2]
[379910200,1755438643370,-559.3,0.00019022,2]
[379910203,1755438643380,-480.0,0.00019022,2]
[379910206,1755438643389,-713.3,0.00019022,2]
[379910209,1755438643399,-1434.13259102,0.00019074,2]
[379910212,1755438643409,-500.0,0.00019076,2]
[379910214,1755438643418,-500.0,0.00019076,2]
[379910216,1755438643428,-295.05,0.00019076,2]
[379910218,1755438643438,-480.0,0.00019077,2]
[379910220,1755438643447,-480.0,0.00019077,2]
[379910222,1755438643456,-480.0,0.00019077,2]
[379910224,1755438643465,-2265.51,0.00019077,2]
[379910226,1755438643475,-480.0,0.00019077,2]
[379910229,1755438643485,-151.0,0.000191,2]
[379910231,1755438643495,-5000.0,0.00019178,2]
[379910233,1755438643504,-5000.0,0.00019178,2]
[379910236,1755438643514,-5000.0,0.00019178,2]
[379910238,1755438643523,-666.0,0.00019178,2]
[379910240,1755438643533,-9584.7341633,0.00019178,2]
[379910242,1755438643542,-589.395901,0.00019178,2]
[379910244,1755438643552,-499.26651427,0.00019186,2]
[379910246,1755438643561,-178.47330037,0.00019186,2]
[379910248,1755438643571,-618.39,0.00019186,2]
[379910250,1755438643581,-1003.31,0.00019186,2]
[379910252,1755438643590,-509.86,0.00019186,2]
[379910254,1755438643600,-480.0,0.00019186,2]
[379910256,1755438643609,-480.0,0.00019186,2]
[379910258,1755438643621,-480.0,0.00019186,2]
[379910260,1755438643631,-480.0,0.00019186,2]
[379910262,1755438643640,-480.0,0.00019186,2]
[379910264,1755438643650,-480.0,0.00019186,2]
[379910266,1755438643660,-480.0,0.00019186,2]
[379910268,1755438643669,-460.0,0.00019186,2]
[379910270,1755438643679,-334.32241536,0.00019186,2]
[379910272,1755438643688,-713.38,0.00019186,2]
[379910274,1755438643697,-480.0,0.00019186,2]
[379910276,1755438643707,-480.0,0.00019186,2]
[379910278,1755438643716,-480.0,0.00019186,2]
[379910280,1755438643725,-528.18,0.00019186,2]
[379910282,1755438643734,-480.0,0.00019186,2]
[379910284,1755438643744,-480.0,0.00019186,2]
[379910286,1755438643753,-711.93,0.00019186,2]
[379910288,1755438643763,-390.51957949,0.00019186,2]
[379910290,1755438643772,-480.0,0.00019186,2]
[379910292,1755438643782,-340.0,0.00019186,2]
[379910294,1755438643792,-2411.44,0.00019186,2]
[379910296,1755438643802,-480.0,0.00019186,2]
[379910298,1755438643811,-480.0,0.00019186,2]
[379910300,1755438643820,-480.0,0.00019186,2]
[379910302,1755438643829,-527.43,0.00019186,2]
[379910304,1755438643839,-480.0,0.00019186,2]
[379910306,1755438643848,-480.0,0.00019186,2]
[379910308,1755438643858,-480.0,0.00019186,2]
[379910310,1755438643867,-480.0,0.00019186,2]
[379910312,1755438643877,-542.26419496,0.00019186,2]
[379910314,1755438643892,-712.58,0.00019186,2]
[379910316,1755438643901,-480.0,0.00019186,2]
[379910318,1755438643911,-480.0,0.00019186,2]
[379910320,1755438643920,-976.05,0.00019189,2]
[379910322,1755438643930,-734.25,0.00019189,2]
[379910324,1755438643939,-480.0,0.00019189,2]
[379910326,1755438643948,-480.0,0.00019189,2]
[379910328,1755438643957,-7093.57,0.00019189,2]
[379910330,1755438643968,-1689.24,0.00019189,2]
[379910332,1755438643978,-879.83,0.00019189,2]
[379910334,1755438643988,-151.0,0.00019189,2]
[379910337,1755438643997,-480.0,0.00019189,2]
[379910340,1755438644007,-480.0,0.0001919,2]
[379910342,1755438644017,-460.0,0.0001919,2]
[379910345,1755438644027,-572.24,0.0001919,2]
[379910348,1755438644036,-151.0,0.0001919,2]
[379910350,1755438644045,-850.03,0.0001919,2]
[379910352,1755438644055,-480.0,0.0001919,2]
[379910355,1755438644066,-868.73,0.0001919,2]
[379910358,1755438644075,-293.95436,0.0001919,2]
[379910361,1755438644085,-480.0,0.0001919,2]
[379910364,1755438644094,-151.0,0.0001919,2]
[379910367,1755438644105,-151.0,0.0001919,2]
[379910369,1755438644115,-480.0,0.0001919,2]
[379910371,1755438644126,-151.0,0.0001919,2]
[379910373,1755438644136,-480.0,0.0001919,2]
[379910375,1755438644145,-480.0,0.0001919,2]
[379910377,1755438644156,-151.0,0.0001919,2]
[379910379,1755438644166,-480.0,0.0001919,2]
[379910381,1755438644175,-206.747194,0.0001919,2]
[379910383,1755438644185,-151.0,0.0001919,2]
[379910385,1755438644194,-151.0,0.0001919,2]
[379910387,1755438644204,-151.0,0.0001919,2]
[379910389,1755438644213,-151.0,0.0001919,2]
[379910391,1755438644222,-151.0,0.0001919,2]
[379910393,1755438644232,-238.582471,0.0001919,2]
[379910395,1755438644242,-480.0,0.0001919,2]
[379910397,1755438644251,-259.753943,0.0001919,2]
[379910399,1755438644261,-151.0,0.0001919,2]
[379910401,1755438644270,-480.0,0.0001919,2]
[379910403,1755438644280,-272.55333489,0.0001919,2]
[379910405,1755438644290,-609.72,0.0001919,2]
[379910407,1755438644299,-151.0,0.0001919,2]
[379910409,1755438644309,-480.0,0.0001919,2]
[379910411,1755438644319,-1034.05,0.0001919,2]
[379910413,1755438644328,-151.0,0.0001919,2]
[379910415,1755438644338,-480.0,0.0001919,2]